fUSD/lending_fUSD_20260307
["ID","MTS","AMOUNT","RATE_DAILY","PERIOD"]
[407869267,1772854238483,-193.8,0.00019972,2]
[407869268,1772854238492,-193.8,0.00019972,2]
[407869269,1772854238501,-193.8,0.00019972,2]
[407869270,1772854238510,-150.0,0.00019973,2]
[407869271,1772854238519,-151.0,0.00019979,2]
[407869272,1772854238841,-1087.0,0.00019982,2]
[407869273,1772854238859,-184134.1108312,0.00019982,2]
[407869274,1772854238869,-4297.5821202,0.00019982,2]
[407869275,1772854238878,-3598.8477001,0.00019982,2]
[407869276,1772854238887,-391.7225996,0.00019982,2]
[407869277,1772854238897,-3555.9820365,0.00019982,2]
[407869278,1772854238907,-5283.9417141,0.00019982,2]
[407869279,1772854238916,-177.2836631,0.00019982,2]
[407869280,1772854238925,-41358.4257519,0.00019982,2]
[407869281,1772854238934,-193.8,0.0001999,2]
[407869282,1772854238943,-193.8,0.0001999,2]
[407869283,1772854238952,-151.0,0.00019997,2]
[407869284,1772854238961,-309.98346331,0.00019999,2]
[407869285,1772854238970,-3000.0,0.00019999,2]
[407869286,1772854238979,-3000.0,0.00019999,7]
[407869287,1772854238987,-256.75572098,0.00019999,2]
[407869288,1772854238997,-446.13432459,0.00019999,2]
[407869289,1772854239006,-188.37828695,0.00019999,2]
[407869290,1772854239017,-188.9479477,0.00019999,2]
[407869291,1772854239027,-1103.0,0.0002,2]
[407869292,1772854239038,-1600.0,0.0002,7]
[407869293,1772854239048,-3000.0,0.0002,7]
[407869294,1772854239058,-901118.02610366,0.0002,2]
[407869295,1772854239068,-1475.05214868,0.0002,5]
[407869296,1772854239079,-949939.96016557,0.0002,2]
[407869297,1772854239088,-132650.75387157,0.0002,2]
[407869298,1772854239097,-2953.98353477,0.0002,7]
[407869299,1772854239107,-501.32581746,0.0002,10]
[407869300,1772854239118,-532.31036079,0.0002,7]
[407869301,1772854239129,-1435.21,0.0002,120]
[407869302,1772854239139,-12980.51845403,0.0002,2]
[407869303,1772854239150,-726.32822673,0.0002,120]
[407869304,1772854239161,-1841.54488066,0.0002,120]
[407869305,1772854239170,-199.8,0.0002,5]
[407869306,1772854239180,-10379.13836207,0.0002,2]
[407869307,1772854239188,-154.61176372,0.0002,2]
[407869308,1772854239198,-150.0,0.0002,2]
[407869309,1772854239207,-8646.40162624,0.0002,2]
[407869310,1772854239216,-150.0,0.0002,2]
[407869311,1772854239227,-23587.74742454,0.0002,2]
[407869312,1772854239237,-2942.52233711,0.0002,2]
[407869313,1772854239247,-150.0,0.0002,2]
[407869314,1772854239255,-150.5,0.0002,2]
[407869315,1772854239264,-1032.957004,0.0002,2]
[407869316,1772854239273,-2000.0,0.0002,2]
[407869317,1772854239282,-2000.0,0.0002,2]
[407869318,1772854239291,-151.0,0.0002,2]
[407869319,1772854239300,-3492073.25947149,0.0002,2]
[407869320,1772854239339,-9815.08224299,0.0002,2]
[407869323,1772854240019,-254.12738969,0.000199,3]
[407869336,1772854243108,-100.3697149,0.000199,3]
[407869337,1772854243129,-2346.24632594,0.000199,2]
[407869338,1772854243143,-1594.87669072,0.000199,2]
[407869339,1772854243152,-342.39552287,0.0002,2]
[407869340,1772854243179,-2406.53133596,0.0002,2]
[407869344,1772854245834,-2600.0,0.000199,2]
[407869345,1772854246048,-503.51469474,0.000199,2]
[407869349,1772854433719,200.0,0.00011413,2]
[407869350,1772854694245,200.0,0.00011413,2]
[407869352,1772855216123,-155.0,0.00011413,3]
[407869353,1772855216142,-10.4774815,0.00013333,2]
[407869354,1772855348100,-494.5225185,0.00013333,2]
[407869355,1772855348120,-159.80365,0.00013333,2]
[407869356,1772855348140,-200.0,0.00014613,2]
[407869357,1772855348159,-250.0,0.00015,2]
[407869358,1772855348179,-505.0,0.00015632,4]
[407869359,1772855348198,-170.0,0.000158,2]
[407869360,1772855348219,-578.0,0.00015898,2]
[407869361,1772855348239,-500.0,0.00015899,2]
[407869362,1772855348259,-159.40647673,0.00015899,2]
[407869363,1772855365098,-340.59352327,0.00015899,2]
[407869364,1772855365125,-500.0,0.00015899,2]
[407869365,1772855365151,-170.18,0.00016123,2]
[407869366,1772855365178,-2000.0,0.00016133,2]
[407869367,1772855365205,-300.0,0.00016222,2]
[407869368,1772855365235,-151.0,0.00016223,2]
[407869369,1772855365264,-151.0,0.00016223,2]
[407869370,1772855365292,-151.0,0.00016223,2]
[407869371,1772855365320,-151.0,0.00016223,2]
[407869372,1772855365348,-151.0,0.00016223,2]
[407869373,1772855365380,-151.0,0.00016223,2]
[407869374,1772855365406,-151.0,0.00016223,2]
[407869375,1772855365433,-151.0,0.00016223,2]
[407869376,1772855365461,-151.0,0.00016223,2]
[407869377,1772855365487,-151.0,0.00016223,2]
[407869378,1772855365513,-202.30694051,0.00016223,2]
[407869379,1772855365538,-169.27143825,0.00016223,2]
[407869380,1772855365564,-2000.0,0.00016233,2]
[407869381,1772855365589,-1896.741899,0.00016233,2]
[407869387,1772855431922,-155.0,0.00011413,3]
[407869388,1772855431932,-505.0,0.00013333,2]
[407869389,1772855431943,-505.0,0.00015802,4]
[407869390,1772855431953,-103.258101,0.00016233,2]
[407869391,1772855431963,-151.0,0.00016233,2]
[407869392,1772855431974,-170.18,0.00016393,2]
[407869393,1772855431983,-903.32408721,0.00016483,2]
[407869394,1772855431993,-170.18,0.00016663,2]
[407869395,1772855432002,-312.50806812,0.000169,2]
[407869396,1772855432013,-170.18,0.00016933,2]
[407869397,1772855432023,-300.0,0.00017,2]
[407869398,1772855432035,-166.66,0.0001708,2]
[407869399,1772855432045,-170.18,0.00017203,2]
[407869400,1772855432055,-200.0,0.000174,2]
[407869401,1772855432065,-166.66,0.00017439,2]
[407869402,1772855432075,-170.18,0.00017473,2]
[407869403,1772855432085,-550.0,0.00017492,2]
[407869404,1772855432095,-172.41,0.00017492,2]
[407869405,1772855432105,-525.09,0.00017494,2]
[407869406,1772855432114,-152.0,0.0001751,3]
[407869407,1772855432124,-1600.0,0.00017545,2]
[407869408,1772855432134,-300.0,0.00017547,2]
[407869409,1772855432144,-11814.2,0.00017548,2]
[407869410,1772855432154,-150.0,0.0001756,2]
[407869411,1772855432164,-2680.53,0.00017622,2]
[407869412,1772855432174,-200.0,0.00017669,2]
[407869413,1772855432184,-500.0,0.00017708,2]
[407869414,1772855432194,-170.23,0.00017743,2]
[407869415,1772855432203,-166.66,0.00017799,2]
[407869416,1772855432218,-3000.0,0.00017808,7]
[407869417,1772855432227,-1300.0,0.00017808,7]
[407869418,1772855432237,-166.67,0.00017922,2]
[407869419,1772855432247,-1042.0,0.00018151,2]
[407869420,1772855432256,-619.0,0.00018151,2]
[407869421,1772855432266,-1341.0,0.00018151,2]
[407869422,1772855432277,-922.0,0.00018151,2]
[407869423,1772855432287,-1223.841,0.00018151,2]
[407869424,1772855432297,-1279.0,0.00018151,2]
[407869425,1772855432307,-3747.0,0.00018151,2]
[407869426,1772855432316,-414.0,0.00018151,2]
[407869427,1772855432326,-166.66,0.00018158,2]
[407869428,1772855432333,-152.0,0.00018231,4]
[407869429,1772855432340,-505.0,0.00018271,6]
[407869430,1772855432347,-2680.53,0.00018503,2]
[407869431,1772855432354,-166.66,0.00018518,2]
[407869432,1772855432364,-935.0,0.00018594,2]
[407869433,1772855432374,-900.0,0.00018779,2]
[407869434,1772855432384,-166.66,0.00018877,2]
[407869435,1772855432394,-1237.79,0.00018885,2]
[407869436,1772855432403,-1097.67,0.00018885,2]
[407869437,1772855432413,-3000.0,0.00018904,7]
[407869438,1772855432423,-1300.0,0.00018904,7]
[407869439,1772855432433,-152.0,0.00018952,5]
[407869440,1772855432443,-431.65352128,0.00018999,2]
[407869441,1772855432452,-500.0,0.00018999,2]
[407869442,1772855432462,-1469.73446645,0.00018999,2]
[407869443,1772855432471,-733.32656971,0.00018999,2]
[407869444,1772855432481,-2500.0,0.00018999,2]
[407869445,1772855432491,-315.19202845,0.00018999,2]
[407869446,1772855432860,-2500.0,0.00018999,2]
[407869447,1772855432882,-2625.52153756,0.00018999,2]
[407869448,1772855432891,-693.3919763,0.00018999,2]
[407869449,1772855432903,-155.05699457,0.00018999,2]
[407869450,1772855432912,-500.0,0.00018999,2]
[407869451,1772855432922,-500.0,0.00018999,2]
[407869452,1772855432931,-500.0,0.00018999,2]
[407869453,1772855432941,-500.0,0.00018999,2]
[407869454,1772855432950,-500.0,0.00018999,2]
[407869455,1772855432959,-500.0,0.00018999,2]
[407869456,1772855432969,-500.0,0.00018999,2]
[407869457,1772855432978,-500.0,0.00018999,2]
[407869458,1772855432988,-500.0,0.00018999,2]
[407869459,1772855432997,-500.0,0.00018999,2]
[407869460,1772855433007,-500.0,0.00018999,2]
[407869461,1772855433016,-719.04747942,0.00019054,2]
[407869462,1772855433025,-449.7517,0.00019078,2]
[407869463,1772855433034,-745.65223616,0.00019109,2]
[407869464,1772855433043,-773.2413689,0.00019164,2]
[407869465,1772855433053,-711.72,0.00019178,30]
[407869466,1772855433062,-2000.0,0.000192,2]
[407869467,1772855433071,-600.0,0.000192,7]
[407869468,1772855433080,-801.85129955,0.00019219,2]
[407869469,1772855433089,-831.51979763,0.00019274,2]
[407869470,1772855433098,-202.0,0.000193,2]
[407869471,1772855433107,-1200.0,0.000193,7]
[407869472,1772855433117,-862.28603014,0.00019329,2]
[407869473,1772855433126,-894.19061326,0.00019384,2]
[407869474,1772855433135,-2680.53,0.00019384,2]
[407869475,1772855433144,-1800.0,0.000194,7]
[407869476,1772855433153,-166.67,0.00019401,2]
[407869477,1772855433162,-927.27566595,0.00019439,2]
[407869478,1772855433171,-961.58486559,0.00019494,2]
[407869479,1772855433180,-1231.64491737,0.000195,7]
[407869480,1772855433192,-1254.41808677,0.000195,7]
[407869482,1772855438115,-151.0,0.00018151,2]
[407869483,1772855438126,-151.0,0.00019494,2]
[407869484,1772855438137,-13.93699586,0.000195,7]
[407869485,1772855438147,-17.94158404,0.00019549,2]
[407869530,1772855438825,-979.22192157,0.00019549,2]
[407869531,1772855438834,-185.008,0.00019577,2]
[407869533,1772855438844,-3317.439,0.00019577,2]
[407869535,1772855438852,-2086.4385018,0.000196,2]
[407869536,1772855438861,-3100.0,0.000196,7]
[407869538,1772855438871,-152.0,0.00019673,6]
[407869540,1772855438880,-1653.23,0.00019677,14]
[407869541,1772855438889,-1785.4012,0.000197,2]
[407869542,1772855438898,-920.51152564,0.000197,2]
[407869543,1772855438911,-600.0,0.000197,7]
[407869544,1772855438920,-2500.0,0.000197,2]
[407869545,1772855438929,-1582.57197464,0.000197,2]
[407869546,1772855438938,-920.51152556,0.00019722,2]
[407869547,1772855438949,-1582.57197459,0.00019729,2]
[407869548,1772855438958,-1600.0,0.00019739,2]
[407869549,1772855438967,-920.51152556,0.00019744,2]
[407869550,1772855438978,-1582.57197459,0.00019757,2]
[407869551,1772855438987,-920.51152556,0.00019767,2]
[407869552,1772855438995,-1000.0,0.00019776,2]
[407869553,1772855439004,-1582.57197459,0.00019786,2]
[407869554,1772855439020,-920.51152556,0.00019789,2]
[407869555,1772855439035,-446.13432459,0.00019799,2]
[407869556,1772855439045,-188.9479477,0.00019799,2]
[407869557,1772855439054,-188.37828695,0.00019799,2]
[407869558,1772855439063,-603531.2127,0.000198,2]
[407869559,1772855439074,-2000.0,0.000198,2]
[407869560,1772855439084,-2000.0,0.000198,2]
[407869561,1772855439093,-600.0,0.000198,7]
[407869562,1772855439103,-168.0,0.00019805,2]
[407869563,1772855439112,-920.51152556,0.00019811,2]
[407869564,1772855439120,-1582.57197459,0.00019814,2]
[407869565,1772855439130,-920.51152556,0.00019833,2]
[407869566,1772855439145,-1582.57197459,0.00019843,2]
[407869567,1772855439155,-920.51152556,0.00019856,2]
[407869568,1772855439168,-1582.57197459,0.00019871,2]
[407869569,1772855439177,-920.51152556,0.00019878,2]
[407869570,1772855439186,-25000.0,0.00019891,3]
[407869571,1772855439200,-150.0,0.00019891,2]
[407869572,1772855439210,-162.52792545,0.000199,2]
[407869573,1772855439219,-1000.0,0.000199,2]
[407869574,1772855439228,-19321.4759,0.000199,2]
[407869575,1772855439237,-5000.0,0.000199,2]
[407869576,1772855439246,-25000.0,0.000199,3]
[407869577,1772855439255,-920.51152556,0.000199,2]
[407869578,1772855439264,-600.0,0.000199,7]
[407869579,1772855439273,-1083.0,0.000199,2]
[407869580,1772855439281,-1431.31,0.000199,14]
[407869581,1772855439291,-168.0,0.00019928,2]
[407869582,1772855439300,-250.59174177,0.00019973,2]
[407869583,1772855439309,-497.49770464,0.00019981,2]
[407869584,1772855439318,-982.18754,0.00019986,2]
[407869585,1772855439327,-348.20621258,0.0001999,2]
[407869586,1772855439335,-348.20621258,0.0001999,2]
[407869587,1772855439344,-348.20621258,0.0001999,2]
[407869588,1772855439353,-256.75572098,0.00019999,2]
[407869589,1772855439362,-1154.0,0.0002,2]
[407869590,1772855439371,-3000.0,0.0002,7]
[407869591,1772855439380,-1300.0,0.0002,7]
[407869592,1772855439389,-4820939.67170226,0.0002,2]
[407869622,1772855440374,-2090.31,0.00018151,2]
[407869623,1772855440386,-1582.57197459,0.000199,2]
[407869624,1772855440396,-278763.45025884,0.0002,2]
[407869628,1772855443422,-2.55275152,0.0002,2]
[407869629,1772855443516,-1364.31703995,0.0002,2]
[407869632,1772855446016,-572.01969778,0.0002,2]
[407869633,1772855446027,-1893.12,0.0002,2]
[407869634,1772855446037,-256.56071341,0.0002,2]
[407869635,1772855446069,-169099.4007312,0.0002,2]
[407869639,1772856394119,-208.83769164,0.00013333,2]
[407869640,1772856428072,-171.13948662,0.00013333,2]
[407869641,1772856547669,-510.0,0.00013333,2]
[407869642,1772856547689,-250.0,0.00014166,2]
[407869643,1772856547709,-250.0,0.00014666,2]
[407869644,1772856547728,-227.68398183,0.00014666,2]
[407869645,1772856547749,-1311.93366285,0.00015,3]
[407869646,1772856565081,-544.44089677,0.00015,3]
[407869647,1772856565102,-250.0,0.00015,2]
[407869648,1772856565121,-1758.28,0.00015061,2]
[407869649,1772856565140,-165.11,0.00015195,2]
[407869650,1772856565160,-453.91,0.00015843,2]
[407869651,1772856565181,-453.91,0.00015843,2]
[407869652,1772856565216,-453.91,0.00015843,2]
[407869653,1772856565241,-510.0,0.00016,4]
[407869654,1772856565265,-159.16,0.00016123,2]
[407869655,1772856565287,-226.95,0.00016333,2]
[407869656,1772856565308,-226.95,0.00016333,7]
[407869657,1772856565330,-159.16,0.00016393,2]
[407869658,1772856565351,-159.16,0.00016663,2]
[407869659,1772856565371,-180.416132,0.00016848,2]
[407869660,1772856565392,-159.16,0.00016933,2]
[407869661,1772856565413,-300.0,0.00017,2]
[407869662,1772856565434,-159.16,0.00017203,2]
[407869663,1772856565455,-159.16,0.00017473,2]
[407869664,1772856565474,-278.7279882,0.00017606,2]
[407869665,1772856565494,-550.0,0.00017607,2]
[407869666,1772856565514,-2058.18953547,0.00017607,2]
[407869667,1772856565536,-33103.53184108,0.00017608,2]
[407869668,1772856567071,-45267.6553,0.00017608,2]
[407869682,1772856632059,-190.761278,0.000171,7]
[407869686,1772856632070,-300.0,0.00017607,2]
[407869689,1772856632080,-1200.0,0.00017607,2]
[407869692,1772856632090,-250.44812906,0.00017607,2]
[407869695,1772856632103,-2500.0,0.00017607,2]
[407869697,1772856632112,-474903.39625892,0.00017608,2]
[407869699,1772856632122,-176.0,0.00017608,3]
[407869701,1772856632132,-186.0,0.00017608,3]
[407869703,1772856632143,-200.0,0.00017619,2]
[407869705,1772856632152,-2500.0,0.00017655,2]
[407869706,1772856632161,-2500.0,0.00017655,2]
[407869707,1772856632171,-2500.0,0.00017655,2]
[407869708,1772856632181,-58958.4327,0.00017708,2]
[407869709,1772856632190,-159.16,0.00017743,2]
[407869710,1772856632202,-555.24357587,0.00017772,2]
[407869711,1772856632212,-179.43839476,0.00017772,2]
[407869712,1772856632222,-177.38581721,0.00017772,2]
[407869713,1772856632234,-1852.42,0.00017788,2]
[407869714,1772856632244,-3000.0,0.00017808,7]
[407869715,1772856632254,-801.04557151,0.00017808,2]
[407869716,1772856632264,-444.81251527,0.00017822,2]
[407869718,1772856632274,-5991.0,0.00017912,2]
[407869719,1772856632283,-414.0,0.00017912,2]
[407869721,1772856632292,-2058.18953544,0.00017935,2]
[407869722,1772856632301,-199.8,0.00018,4]
[407869723,1772856632312,-301.33104258,0.00018,5]
[407869724,1772856632322,-1485.66761023,0.00018051,2]
[407869725,1772856632331,-502.0,0.00018082,2]
[407869726,1772856632340,-150.304,0.00018151,2]
[407869727,1772856632350,-3503.0,0.00018151,2]
[407869728,1772856632360,-1042.0,0.00018151,2]
[407869729,1772856632370,-619.0,0.00018151,2]
[407869730,1772856632379,-1279.0,0.00018151,2]
[407869731,1772856632388,-1212.0,0.00018151,2]
[407869732,1772856632399,-922.0,0.00018151,2]
[407869733,1772856632408,-2058.18953544,0.00018262,2]
[407869734,1772856632417,-168.0,0.00018305,2]
[407869735,1772856632426,-1485.66761023,0.00018354,2]
[407869736,1772856632435,-2058.18953544,0.0001859,2]
[407869737,1772856632444,-168.0,0.00018639,2]
[407869738,1772856632453,-1485.66761023,0.00018656,2]
[407869739,1772856632462,-2912.67,0.00018666,2]
[407869740,1772856632472,-510.0,0.00018666,6]
[407869741,1772856632481,-535.0,0.00018699,2]
[407869742,1772856632490,-168.0,0.00018756,2]
[407869743,1772856632509,-168.0,0.00018768,2]
[407869744,1772856632519,-3000.0,0.00018904,7]
[407869745,1772856632528,-172.78723296,0.0001891,2]
[407869746,1772856632537,-957.65356796,0.00018917,2]
[407869747,1772856632555,-1100.53596748,0.00018917,2]
[407869748,1772856632564,-1500.0,0.00018955,2]
[407869749,1772856632573,-1485.66761023,0.00018959,2]
[407869750,1772856632582,-500.0,0.00018999,2]
[407869751,1772856632592,-500.0,0.00018999,2]
[407869752,1772856632601,-500.0,0.00018999,2]
[407869753,1772856632610,-500.0,0.00018999,2]
[407869754,1772856632619,-500.0,0.00018999,2]
[407869755,1772856632629,-500.0,0.00018999,2]
[407869756,1772856632638,-500.0,0.00018999,2]
[407869757,1772856632647,-500.0,0.00018999,2]
[407869758,1772856632656,-500.0,0.00018999,2]
[407869759,1772856632665,-500.0,0.00018999,2]
[407869760,1772856632674,-500.0,0.00018999,2]
[407869761,1772856632683,-500.0,0.00018999,2]
[407869762,1772856632693,-693.3919763,0.00018999,2]
[407869763,1772856632702,-719.04747942,0.00019054,2]
[407869764,1772856632711,-272.24,0.00019059,2]
[407869765,1772856632720,-168.0,0.0001907,2]
[407869766,1772856632731,-200.0,0.000191,6]
[407869767,1772856632741,-745.65223616,0.00019109,2]
[407869768,1772856632750,-773.2413689,0.00019164,2]
[407869769,1772856632759,-1000.0,0.000192,2]
[407869770,1772856632769,-400.0,0.000192,7]
[407869771,1772856632778,-801.85129955,0.00019219,2]
[407869772,1772856632787,-2058.18953544,0.00019245,2]
[407869773,1772856632796,-831.51979763,0.00019274,2]
[407869774,1772856632806,-2728.39,0.00019288,2]
[407869775,1772856632815,-600.0,0.000193,7]
[407869776,1772856632824,-1680.0,0.00019314,2]
[407869777,1772856632834,-862.28603014,0.00019329,2]
[407869778,1772856632843,-313.65460499,0.00019368,2]
[407869779,1772856632852,-200.0,0.00019368,2]
[407869780,1772856632865,-2500.0,0.00019368,2]
[407869781,1772856632875,-894.19061326,0.00019384,2]
[407869782,1772856632885,-800.0,0.000194,7]
[407869783,1772856632894,-927.27566595,0.00019439,2]
[407869784,1772856632905,-1048.0,0.00019484,2]
[407869785,1772856632914,-961.58486559,0.00019494,2]
[407869786,1772856632924,-1000.0,0.000195,7]
[407869787,1772856632933,-997.16350561,0.00019549,2]
[407869788,1772856632943,-2058.18953544,0.00019572,2]
[407869789,1772856632953,-1659.42938037,0.000196,2]
[407869790,1772856632962,-200.0,0.000196,7]
[407869791,1772856632972,-185.0082646,0.00019608,2]
[407869792,1772856632982,-2653.951,0.00019608,2]
[407869793,1772856632991,-2961.57,0.00019671,2]
[407869794,1772856633000,-1000.0,0.000197,2]
[407869795,1772856633011,-19321.4759,0.000197,2]
[407869796,1772856633021,-528.11610231,0.000197,2]
[407869797,1772856633030,-200.0,0.000197,7]
[407869798,1772856633039,-1000.0,0.00019722,2]
[407869799,1772856633049,-1000.0,0.00019777,2]
[407869800,1772856633062,-549.0,0.00019789,2]
[407869801,1772856633071,-2500.0,0.00019791,2]
[407869802,1772856633080,-200.0,0.000198,7]
[407869803,1772856633090,-200.0,0.00019819,2]
[407869804,1772856633099,-1986.75133122,0.00019877,2]
[407869805,1772856633109,-1986.75133116,0.0001988,2]
[407869806,1772856633120,-1986.75133116,0.00019882,2]
[407869807,1772856633129,-25000.0,0.00019882,3]
[407869808,1772856633139,-1986.75133116,0.00019885,2]
[407869809,1772856633150,-1986.75133116,0.00019887,2]
[407869810,1772856633161,-1048.0,0.00019889,2]
[407869811,1772856633171,-1986.75133116,0.0001989,2]
[407869812,1772856633181,-25000.0,0.00019891,3]
[407869813,1772856633190,-1986.75133116,0.00019892,2]
[407869814,1772856633200,-1986.75133116,0.00019895,2]
[407869815,1772856633212,-1986.75133116,0.00019897,2]
[407869816,1772856633223,-25000.0,0.000199,3]
[407869817,1772856633234,-160.89855356,0.000199,2]
[407869818,1772856633243,-1986.75133116,0.000199,2]
[407869819,1772856633257,-200.0,0.000199,7]
[407869820,1772856633266,-5000.0,0.000199,2]
[407869821,1772856633276,-2163.6249,0.000199,2]
[407869822,1772856633286,-354.49710461,0.000199,3]
[407869823,1772856633295,-2058.18953544,0.000199,2]
[407869824,1772856633305,-1035.94530453,0.000199,2]
[407869825,1772856633314,-5264.26817352,0.000199,2]
[407869826,1772856633328,-25720.00345062,0.000199,2]
[407869827,1772856633338,-661.09842625,0.00019967,2]
[407869828,1772856633348,-500.0,0.00019972,2]
[407869829,1772856633357,-500.0,0.00019972,2]
[407869830,1772856633367,-500.0,0.00019972,2]
[407869831,1772856633377,-500.0,0.00019972,2]
[407869832,1772856633386,-500.0,0.00019972,2]
[407869833,1772856633396,-150.0,0.00019973,2]
[407869834,1772856633406,-18029.73216121,0.00019973,2]
[407869840,1772856638136,-11864.26783879,0.00019973,2]
[407869841,1772856638146,-7318.0,0.00019973,2]
[407869842,1772856638156,-150.0,0.00019973,2]
[407869843,1772856638165,-151.0,0.00019974,2]
[407869844,1772856638175,-42295.6196121,0.00019977,2]
[407869845,1772856638184,-982.18754,0.00019977,2]
[407869846,1772856638193,-8867.3691259,0.00019977,2]
[407869847,1772856638202,-17287.576384,0.00019977,2]
[407869848,1772856638211,-177.2836631,0.00019977,2]
[407869849,1772856638220,-3428.1692055,0.00019977,2]
[407869850,1772856638230,-379199.2374533,0.00019977,2]
[407869851,1772856638239,-6989.6967391,0.00019977,2]
[407869852,1772856638248,-661.09842625,0.0001999,2]
[407869853,1772856638257,-661.09842625,0.0001999,2]
[407869854,1772856638265,-151.0,0.00019997,2]
[407869855,1772856638275,-309.98346331,0.00019999,2]
[407869856,1772856638284,-155.661,0.00019999,2]
[407869857,1772856638293,-500.0,0.00019999,2]
[407869858,1772856638302,-500.0,0.00019999,2]
[407869859,1772856638311,-500.0,0.00019999,2]
[407869860,1772856638320,-500.0,0.00019999,2]
[407869861,1772856638329,-500.0,0.00019999,2]
[407869862,1772856638338,-397.97236465,0.00019999,2]
[407869863,1772856638346,-500.0,0.00019999,2]
[407869864,1772856638357,-500.0,0.00019999,2]
[407869865,1772856638366,-500.0,0.00019999,2]
[407869866,1772856638375,-500.0,0.00019999,2]
[407869867,1772856638384,-500.0,0.00019999,2]
[407869868,1772856638393,-500.0,0.00019999,2]
[407869869,1772856638402,-500.0,0.00019999,2]
[407869870,1772856638411,-500.0,0.00019999,2]
[407869871,1772856638419,-517.33931831,0.00019999,2]
[407869872,1772856638429,-500.0,0.00019999,2]
[407869873,1772856638438,-500.0,0.00019999,2]
[407869874,1772856638447,-500.0,0.00019999,2]
[407869875,1772856638457,-500.0,0.00019999,2]
[407869876,1772856638465,-422.5802129,0.00019999,2]
[407869877,1772856638475,-648.25476107,0.00019999,2]
[407869878,1772856638483,-500.0,0.00019999,2]
[407869879,1772856638492,-500.0,0.00019999,2]
[407869880,1772856638502,-500.0,0.00019999,2]
[407869881,1772856638512,-500.0,0.00019999,2]
[407869882,1772856638521,-500.0,0.00019999,2]
[407869883,1772856638530,-485.29077404,0.00019999,2]
[407869884,1772856638539,-3000.0,0.00019999,2]
[407869885,1772856638548,-3000.0,0.00019999,7]
[407869886,1772856638558,-256.75572098,0.00019999,2]
[407869887,1772856638567,-1369.0,0.0002,2]
[407869888,1772856638576,-1516.0,0.0002,2]
[407869889,1772856638584,-3000.0,0.0002,7]
[407869890,1772856638593,-3019006.93361536,0.0002,2]
[407869891,1772856638603,-1792.02437307,0.0002,120]
[407869892,1772856638612,-2945.56917168,0.0002,7]
[407869893,1772856638621,-1709.74067993,0.0002,120]
[407869894,1772856638631,-1705752.46261854,0.0002,2]
[407869895,1772856638651,-1830.28195044,0.0002,2]
[407869896,1772856638662,-2783.9509069,0.0002,2]
[407869897,1772856638673,-618.52962736,0.0002,2]
[407869899,1772856638684,-1302.14001199,0.0002,2]
[407869935,1772856646072,-326.4636,0.00017912,2]
[407869936,1772856646126,-2132.5364,0.00017912,2]
[407869937,1772856646136,-168.0,0.00019016,2]
[407869938,1772856646145,-14256.26517054,0.000199,2]
[407869939,1772856646154,-323357.12627931,0.0002,2]
[407869940,1772856646165,-939.92664995,0.0002,2]
[407869941,1772856646180,-13610.0,0.0002,2]
[407869947,1772857591118,-215.76384433,0.00013333,2]
[407869948,1772857758089,-294.23615567,0.00013333,2]
[407869949,1772857758448,-260.0,0.00013333,2]
[407869950,1772857758473,-600.0,0.000137,2]
[407869951,1772857758495,-600.0,0.00014208,2]
[407869952,1772857758516,-671.0,0.00014665,2]
[407869953,1772857758536,-300.0,0.00014666,2]